bitfinex/quotes_BTCUSD_20230405
["timestamp","ask_amount","ask_price","bid_price","bid_amount"]
[1680654980507,0.38176956,28400.0,28399.0,0.29332197]
[1680654980948,0.38529056,28400.0,28399.0,0.29332197]
[1680654981188,0.75799056,28400.0,28399.0,0.29332197]
[1680654981695,0.75446956,28400.0,28399.0,0.29332197]
[1680654981917,0.38176956,28400.0,28399.0,0.64032023]
[1680654982589,0.38176956,28400.0,28399.0,0.29332197]
[1680654983703,0.75446956,28400.0,28399.0,0.29332197]
[1680654983922,0.75799056,28400.0,28399.0,0.29332197]
[1680654984797,0.75799056,28400.0,28399.0,0.00018]
[1680654985049,0.75799056,28400.0,28399.0,0.29332197]
[1680654985296,0.83449372,28400.0,28399.0,0.29332197]
[1680654985501,0.75799056,28400.0,28399.0,0.29332197]
[1680654986934,0.76649056,28400.0,28399.0,0.00018]
[1680654987165,0.75649056,28400.0,28399.0,0.29314197]
[1680654987403,0.74446956,28400.0,28399.0,0.29332197]
[1680654987650,0.74799056,28400.0,28399.0,0.29332197]
[1680654988318,0.37176956,28400.0,28399.0,0.29332197]
[1680654988536,0.37176956,28400.0,28399.0,0.45851593]
[1680654988768,0.37176956,28400.0,28399.0,0.29332197]
[1680654989487,0.37176956,28400.0,28399.0,0.66333748]
[1680654989710,0.00021,28403.0,28402.0,0.29314197]
[1680654989937,0.35823056,28403.0,28402.0,0.29314197]
[1680654990161,0.35823056,28403.0,28402.0,0.29332197]
[1680654990162,0.37205956,28403.0,28402.0,0.29332197]
[1680654990383,0.41280652,28403.0,28402.0,0.29332197]
[1680654990615,0.37557956,28403.0,28402.0,0.29332197]
[1680654990839,0.74827956,28403.0,28402.0,0.29332197]
[1680654991288,1.47807956,28403.0,28402.0,0.00018]
[1680654991521,1.47807956,28403.0,28400.0,0.29332197]
[1680654991522,1.65275222,28403.0,28400.0,0.29332197]
[1680654991783,0.72741056,28401.0,28400.0,0.29314197]
[1680654991988,0.75585856,28401.0,28400.0,0.29314197]
[1680654992236,1.05585856,28401.0,28400.0,0.29314197]
[1680654993607,0.37259556,28401.0,28400.0,0.29314197]
[1680654993827,0.37238556,28401.0,28400.0,0.29332197]
[1680654994072,0.74860656,28401.0,28400.0,0.29332197]
[1680654994757,0.82440232,28401.0,28400.0,0.28814197]
[1680654995001,0.83290232,28401.0,28400.0,0.28814197]
[1680654996075,0.75731656,28401.0,28400.0,0.28814197]
[1680654996726,0.75731656,28401.0,28400.0,0.28814197]
[1680654997221,0.75731656,28401.0,28400.0,0.09304113]
[1680654997434,0.75710656,28401.0,28400.0,0.09304113]
[1680654999402,0.74860656,28401.0,28400.0,0.09304113]
[1680654999841,1.05710656,28401.0,28398.0,0.09304113]
[1680655000072,0.72741056,28399.0,28398.0,0.09304113]
[1680655000309,0.86980556,28399.0,28398.0,0.09304113]
[1680655000554,1.17809556,28399.0,28398.0,0.09304113]
[1680655000773,1.17830556,28399.0,28398.0,0.09304113]
[1680655000999,1.30468552,28399.0,28398.0,0.09304113]
[1680655001225,1.30447552,28399.0,28398.0,0.09304113]
[1680655005280,1.31447552,28399.0,28393.0,0.00018]
[1680655005509,1.31447552,28399.0,28393.0,0.09304113]
[1680655005510,0.72741056,28394.0,28393.0,0.09304113]
[1680655005735,1.06944556,28394.0,28393.0,0.09304113]
[1680655005968,1.23487026,28394.0,28393.0,0.09304113]
[1680655006470,1.09297345,28394.0,28389.0,0.03299]
[1680655006717,0.72741056,28390.0,28389.0,0.03299]
[1680655006938,0.76861456,28390.0,28389.0,0.03299]
[1680655007170,1.06861456,28390.0,28389.0,0.03299]
[1680655007423,1.07711456,28390.0,28389.0,0.03299]
[1680655007656,1.09214245,28390.0,28389.0,0.03299]
[1680655007897,1.35969111,28390.0,28389.0,0.03299]
[1680655008792,1.17711456,28390.0,28389.0,0.03299]
[1680655010970,1.05452556,28390.0,28389.0,0.03299]
[1680655012318,1.18974856,28390.0,28389.0,0.03299]
[1680655012592,1.19824856,28390.0,28389.0,0.03299]
[1680655013026,1.19824856,28390.0,28389.0,0.31255076]
[1680655013027,1.04748156,28390.0,28389.0,0.31255076]
[1680655013249,1.04748156,28390.0,28389.0,0.31273076]
[1680655013250,0.37125956,28390.0,28389.0,0.31273076]
[1680655013694,0.00021,28393.0,28389.0,0.32423076]
[1680655013921,0.117042,28399.0,28389.0,0.32423076]
[1680655013922,0.35471056,28392.0,28389.0,0.32423076]
[1680655015691,0.3727,28391.0,28389.0,0.32423076]
[1680655015920,0.37193256,28390.0,28389.0,0.32423076]
[1680655016608,0.35471056,28390.0,28389.0,0.32423076]
[1680655016831,0.74868656,28390.0,28389.0,0.04467]
[1680655017275,0.37246456,28390.0,28389.0,0.04467]
[1680655017495,0.37246456,28390.0,28389.0,0.03317]
[1680655017767,0.37246456,28390.0,28389.0,0.45233635]
[1680655018632,0.00021,28394.0,28389.0,0.45233635]
[1680655018871,0.01021,28399.0,28390.0,0.41319399]
[1680655019120,0.01021,28399.0,28391.0,0.1761]
[1680655019121,0.36471056,28399.0,28391.0,0.1761]
[1680655019345,0.36471056,28399.0,28391.0,0.17628]
[1680655019570,0.36471056,28399.0,28391.0,0.19213]
[1680655020021,0.50660737,28399.0,28391.0,0.17628]
[1680655020913,0.14189681,28398.0,28391.0,0.17628]
[1680655021362,0.3727,28396.0,28391.0,0.00018]
[1680655021615,0.51701937,28395.0,28390.0,0.17228629]
[1680655021836,0.016735,28394.0,28390.0,0.17228629]
[1680655022061,0.35471056,28393.0,28391.0,0.37867645]
[1680655022292,0.017494,28392.0,28389.0,0.47425365]
[1680655022516,0.017494,28392.0,28389.0,0.03299]
[1680655022517,0.35471056,28391.0,28389.0,0.03299]
[1680655022751,0.017271,28390.0,28389.0,0.03299]
[1680655022989,0.37550356,28390.0,28389.0,0.03299]
[1680655023210,0.37219156,28390.0,28389.0,0.03299]
[1680655023428,0.74489156,28390.0,28389.0,0.03299]
[1680655023892,0.89031037,28390.0,28389.0,0.03299]
[1680655024113,1.05691356,28390.0,28389.0,0.03299]
[1680655024324,1.17471812,28390.0,28389.0,0.03299]
[1680655024990,1.27471812,28390.0,28389.0,0.03299]
[1680655025672,0.35471056,28382.0,28376.0,0.20405192]
[1680655025890,0.03299,28389.0,28372.0,0.02321]
[1680655025891,0.1776,28377.0,28372.0,0.02321]
[1680655026115,0.1776,28377.0,28375.0,6e-05]
[1680655026116,0.490363,28376.0,28375.0,6e-05]
[1680655026347,0.490363,28376.0,28372.0,0.02321]
[1680655026348,0.493887,28376.0,28372.0,0.02321]
[1680655026592,0.3727,28374.0,28372.0,0.02339]
[1680655026817,0.74510556,28373.0,28372.0,0.02321]
[1680655027255,0.8738058,28373.0,28372.0,0.02321]
[1680655027704,0.8823058,28373.0,28372.0,0.02321]
[1680655027929,1.1823058,28373.0,28372.0,0.02321]
[1680655029307,1.8823058,28373.0,28372.0,0.02321]
[1680655029765,1.8858298,28373.0,28372.0,0.02321]
[1680655030876,1.1858298,28373.0,28372.0,0.02321]
[1680655031107,1.1823058,28373.0,28372.0,0.02321]
[1680655031326,1.1858298,28373.0,28372.0,0.02321]
[1680655031549,1.1823058,28373.0,28372.0,0.02321]
[1680655032069,0.74510556,28373.0,28372.0,0.02321]
[1680655032295,0.37240556,28373.0,28372.0,0.02321]
[1680655032975,0.017695,28373.0,28372.0,0.02321]
[1680655033210,0.1,28378.0,28372.0,0.02321]
[1680655033211,0.017753,28376.0,28372.0,0.02321]
[1680655033449,0.10021,28378.0,28372.0,0.02321]
[1680655033450,0.35471056,28373.0,28372.0,0.02321]
[1680655033689,0.74438056,28373.0,28372.0,0.02321]
[1680655035042,0.37168056,28373.0,28372.0,0.02321]
[1680655035271,0.37168056,28373.0,28372.0,0.02339]
[1680655035494,0.37168056,28373.0,28372.0,0.02321]
[1680655035726,0.01697,28373.0,28372.0,0.33607784]
[1680655035981,0.10021,28382.0,28372.0,0.36102948]
[1680655036220,0.75393656,28381.0,28372.0,0.02321]
[1680655036454,0.35471056,28382.0,28375.0,0.17621]
[1680655036910,0.35471056,28382.0,28375.0,0.19414328]
[1680655037136,0.39020262,28382.0,28375.0,0.19414328]
[1680655037360,0.53209943,28382.0,28376.0,0.38554759]
[1680655037592,0.35471056,28377.0,28376.0,0.00018]
[1680655037826,0.89663937,28377.0,28376.0,0.00018]
[1680655038057,0.75474256,28377.0,28372.0,0.02333]
[1680655038299,0.75474256,28377.0,28372.0,0.02321]
[1680655038300,0.72741056,28375.0,28372.0,0.02321]
[1680655038742,0.72741056,28375.0,28372.0,0.02339]
[1680655038743,0.020431,28374.0,28372.0,0.02339]
[1680655038970,0.3727,28373.0,28372.0,0.02321]
[1680655039209,1.19864137,28373.0,28372.0,0.01077972]
[1680655039442,0.03232128,28373.0,28372.0,0.36549028]
[1680655039677,5.3583,28384.0,28372.0,0.28857972]
[1680655039678,0.00021,28379.0,28372.0,0.28857972]
[1680655039934,3.88171,28384.0,28373.0,0.82741056]
[1680655040169,3.88171,28384.0,28378.0,0.17618]
[1680655040405,0.016917,28383.0,28379.0,0.35471056]
[1680655040644,3.8815,28384.0,28383.0,0.17616]
[1680655040875,0.00021,28386.0,28383.0,0.17634]
[1680655041104,3.8815,28394.0,28383.0,0.17634]
[1680655041105,3.88171,28394.0,28383.0,0.80867056]
[1680655041336,3.88171,28394.0,28388.0,0.17612]
[1680655041337,0.35471056,28393.0,28388.0,0.17612]
[1680655041560,0.35471056,28393.0,28383.0,1.01841784]
[1680655041561,0.016962,28392.0,28387.0,0.17613]
[1680655041789,0.35471056,28392.0,28387.0,0.17613]
[1680655042042,0.35471056,28392.0,28388.0,0.42958331]
[1680655042268,0.35471056,28392.0,28388.0,0.37149318]
[1680655042498,0.016407,28391.0,28388.0,0.37149318]
[1680655042729,0.016407,28391.0,28388.0,0.37155318]
[1680655043176,0.35471056,28392.0,28389.0,0.1086]
[1680655043402,0.016225,28391.0,28389.0,0.1086]
[1680655044114,0.00021,28393.0,28389.0,0.1086]
[1680655044337,0.35471056,28393.0,28389.0,0.1086]
[1680655044574,0.35471056,28393.0,28390.0,0.37377045]
[1680655044575,0.017171,28392.0,28390.0,0.37377045]
[1680655045013,0.017171,28392.0,28389.0,0.10878]
[1680655045281,0.017171,28392.0,28389.0,0.55575724]
[1680655045503,0.017171,28392.0,28390.0,0.4439069]
[1680655045718,0.017171,28392.0,28390.0,0.4440269]
[1680655045973,0.017171,28392.0,28391.0,0.1233]
[1680655047106,0.00021,28393.0,28391.0,0.50735671]
[1680655047336,0.00021,28397.0,28391.0,0.50735671]
[1680655047562,0.35471056,28396.0,28391.0,0.50735671]
[1680655047805,0.015929,28395.0,28391.0,0.50735671]
[1680655048944,0.015929,28395.0,28391.0,0.1233]
[1680655049179,0.15782581,28395.0,28391.0,0.1233]
[1680655049406,0.017526,28394.0,28391.0,0.1233]
[1680655049628,0.016867,28395.0,28391.0,0.1233]
[1680655050304,0.016867,28395.0,28392.0,0.42635489]
[1680655054109,0.37157756,28395.0,28391.0,0.12348]
[1680655054364,0.88609937,28394.0,28388.0,0.00018]
[1680655054589,0.15850081,28393.0,28389.0,0.43057627]
[1680655054827,0.37277256,28392.0,28389.0,0.43075627]
[1680655055049,0.37277256,28392.0,28389.0,0.00018]
[1680655055050,0.016811,28391.0,28389.0,0.00018]
[1680655055274,0.37152156,28391.0,28384.0,0.17615]
[1680655055505,0.14189681,28390.0,28385.0,0.39804309]
[1680655055724,0.14210681,28390.0,28385.0,0.39804309]
[1680655056392,0.00021,28390.0,28385.0,0.39804309]
[1680655056606,0.50228894,28391.0,28385.0,0.39804309]
[1680655056821,0.64418575,28391.0,28385.0,0.39804309]
[1680655057037,0.49660737,28390.0,28385.0,0.39804309]
[1680655057264,0.49681737,28390.0,28385.0,0.39804309]
[1680655057474,0.49681737,28390.0,28387.0,0.1239]
[1680655057697,0.13443217,28389.0,28387.0,0.1239]
[1680655057924,0.538288,28389.0,28387.0,0.1239]
[1680655058174,0.35471056,28388.0,28387.0,0.1239]
[1680655058397,0.00021,28388.0,28387.0,0.57653141]
[1680655058621,0.13710051,28392.0,28388.0,0.37621949]
[1680655058846,0.4996464,28391.0,28388.0,0.37621949]
[1680655059074,0.4998564,28391.0,28388.0,0.37621949]
[1680655059298,0.016391,28390.0,28388.0,0.37621949]
[1680655059587,0.37131156,28390.0,28388.0,0.37621949]
[1680655059808,0.017679,28389.0,28388.0,0.37621949]
[1680655060025,0.017889,28389.0,28387.0,0.1239]
[1680655060246,0.00021,28389.0,28387.0,0.57859275]
[1680655062028,1.1,28388.0,28387.0,0.57859275]
[1680655062243,1.10021,28388.0,28387.0,0.57859275]
[1680655062680,1.6092394,28388.0,28387.0,0.1239]
[1680655063577,1.6092394,28388.0,28384.0,0.00018]
[1680655063578,1.47604156,28388.0,28384.0,0.00018]
[1680655063791,1.47604156,28388.0,28382.0,0.32993583]
[1680655063792,0.37145456,28387.0,28382.0,0.32993583]
[1680655064008,0.15814981,28386.0,28382.0,0.32993583]
[1680655064232,3.8815,28384.0,28383.0,0.4165931]
[1680655064453,3.897894,28384.0,28383.0,0.4165931]
[1680655064742,0.016394,28384.0,28382.0,0.00018]
[1680655064961,0.016394,28384.0,28383.0,0.0787]
[1680655064962,3.897684,28384.0,28383.0,0.0787]
[1680655065179,3.897894,28384.0,28383.0,0.0787]
[1680655065877,4.04528077,28384.0,28383.0,0.0787]
[1680655067870,4.39999133,28384.0,28383.0,0.0787]
[1680655071305,4.98335577,28384.0,28383.0,0.0787]
[1680655071550,5.10507582,28384.0,28383.0,0.0779]
[1680655072271,5.10155282,28384.0,28383.0,0.0779]
[1680655072536,4.74702461,28384.0,28383.0,0.0779]
[1680655072978,4.74702461,28384.0,28383.0,0.47040287]
[1680655072979,3.897894,28384.0,28383.0,0.47040287]
[1680655073226,3.88171,28384.0,28383.0,0.093754]
[1680655073466,3.88171,28384.0,28383.0,0.54846456]
[1680655073688,3.8815,28384.0,28383.0,0.59090656]
[1680655073908,3.8815,28384.0,28383.0,0.96360656]
[1680655074137,3.2883,28384.0,28383.0,2.77260289]
[1680655074367,3.0883,28384.0,28383.0,2.67260289]
[1680655074595,2.9883,28384.0,28383.0,3.04171082]
[1680655074825,2.8985,28384.0,28383.0,2.67260289]
[1680655075097,2.8985,28384.0,28383.0,3.09452046]
[1680655075316,2.8985,28384.0,28383.0,2.67260289]
[1680655076420,2.8985,28384.0,28383.0,2.28076654]
[1680655076421,3.04039681,28384.0,28383.0,2.28076654]
[1680655076643,2.8985,28384.0,28383.0,1.58076654]
[1680655077079,2.89871,28384.0,28383.0,1.58058654]
[1680655077569,2.89871,28384.0,28383.0,1.58196961]
[1680655077793,2.8985,28384.0,28383.0,2.45884153]
[1680655078009,2.8985,28384.0,28383.0,2.37728076]
[1680655078234,2.8985,28384.0,28383.0,2.77728076]
[1680655078451,1.818,28384.0,28383.0,2.86740153]
[1680655078669,1.818,28384.0,28383.0,3.33329841]
[1680655079134,1.818,28384.0,28383.0,3.35105169]
[1680655079776,1.818,28384.0,28383.0,3.14699977]
[1680655080215,1.81821,28384.0,28383.0,3.14181977]
[1680655080434,3.68391,28384.0,28383.0,3.17720977]
[1680655080653,3.68391,28384.0,28383.0,3.38870977]
[1680655082000,3.68391,28384.0,28383.0,3.94068119]
[1680655082218,3.68391,28384.0,28383.0,4.08948119]
[1680655082449,3.68391,28384.0,28383.0,4.12648119]
[1680655083162,3.68391,28384.0,28383.0,4.12148119]
[1680655083594,3.68391,28384.0,28383.0,3.65005925]
[1680655083847,3.86391,28384.0,28383.0,3.34950977]
[1680655084088,3.86391,28384.0,28383.0,3.66402618]
[1680655084341,3.86391,28384.0,28383.0,3.5860221]
[1680655084792,3.86391,28384.0,28383.0,3.4359198]
[1680655085049,3.86391,28384.0,28383.0,3.54935629]
[1680655085302,3.86391,28384.0,28383.0,3.30643435]
[1680655085538,3.1986,28384.0,28383.0,3.30661435]
[1680655085731,3.1986,28384.0,28383.0,3.51811435]
[1680655086623,3.1986,28384.0,28383.0,3.87041435]
[1680655087305,0.332,28384.0,28383.0,4.01921435]
[1680655087545,0.1558,28384.0,28383.0,3.73826938]
[1680655087769,0.1558,28384.0,28383.0,3.5517761]
[1680655088227,0.1558,28384.0,28383.0,3.91740609]
[1680655088448,0.1558,28384.0,28383.0,3.93515937]
[1680655088918,0.1558,28384.0,28383.0,4.08249295]
[1680655089156,0.45082575,28384.0,28383.0,1.64499849]
[1680655089380,0.30892894,28384.0,28383.0,1.195116]
[1680655089598,0.30892894,28384.0,28383.0,1.4015855]
[1680655089815,0.15631,28384.0,28383.0,1.4015855]
[1680655090121,0.15631,28384.0,28383.0,2.34169384]
[1680655090586,0.15631,28384.0,28383.0,2.71439794]
[1680655090587,0.15631,28384.0,28383.0,2.7143753]
[1680655091246,0.1558,28384.0,28383.0,2.7140753]
[1680655091702,0.1558,28384.0,28383.0,2.5076058]
[1680655094937,0.28169531,28384.0,28383.0,1.26157104]
[1680655095183,0.28220531,28384.0,28383.0,1.26157104]
[1680655095439,0.28220531,28384.0,28383.0,0.16157104]
[1680655095718,0.28220531,28384.0,28383.0,0.078962]
[1680655095977,0.29469523,28384.0,28383.0,0.037]
[1680655096202,0.1188,28384.0,28383.0,1.68996314]
[1680655096425,0.1188,28384.0,28383.0,2.2209837]
[1680655097138,0.1188,28384.0,28383.0,2.7322499]
[1680655097361,0.1188,28384.0,28383.0,3.15486005]
[1680655097579,0.1188,28384.0,28383.0,2.71291256]
[1680655097799,0.1188,28384.0,28383.0,3.09634196]
[1680655098054,0.1188,28384.0,28383.0,2.74404196]
[1680655098289,0.1188,28384.0,28383.0,2.56791196]
[1680655098517,0.27727934,28384.0,28383.0,0.22223318]
[1680655098742,0.27727934,28384.0,28383.0,0.041218]
[1680655098971,0.1188,28384.0,28383.0,2.54632495]
[1680655099205,0.1188,28384.0,28383.0,2.88756066]
[1680655099452,0.1188,28384.0,28383.0,2.68113664]
[1680655099677,0.1188,28384.0,28383.0,3.20273664]
[1680655099903,0.1188,28384.0,28383.0,3.2320019]
[1680655100134,0.1188,28384.0,28383.0,1.6159644]
[1680655100354,0.1188,28384.0,28383.0,1.77668047]
[1680655100590,0.1188,28384.0,28383.0,1.98309949]
[1680655101063,0.1188,28384.0,28383.0,3.48309949]
[1680655101946,0.1188,28384.0,28383.0,3.33419949]
[1680655103285,0.1188,28384.0,28383.0,2.41820158]
[1680655103764,0.57072643,28384.0,28383.0,0.039238]
[1680655103771,0.42882962,28384.0,28383.0,0.039238]
[1680655104036,0.42882962,28384.0,28383.0,0.0082]
[1680655104278,0.42882962,28384.0,28383.0,0.045239]
[1680655104518,0.42933962,28384.0,28383.0,0.0082]
[1680655104750,0.1,28383.0,28378.0,0.20665806]
[1680655104976,0.1489,28379.0,28378.0,0.00018]
[1680655105207,0.29079681,28379.0,28378.0,0.00018]
[1680655105440,0.1489,28379.0,28376.0,0.00018]
[1680655105675,0.1489,28377.0,28376.0,0.00018]
[1680655105925,0.1489,28377.0,28376.0,0.039009]
[1680655106197,0.1489,28377.0,28376.0,0.3932988]
[1680655106436,0.1188,28379.0,28376.0,0.054867]
[1680655106688,0.1188,28379.0,28378.0,0.42077247]
[1680655106910,0.1188,28379.0,28378.0,0.00018]
[1680655107134,0.1188,28379.0,28376.0,0.25896194]
[1680655107386,0.1188,28379.0,28376.0,0.00018]
[1680655107387,0.1483,28377.0,28376.0,0.00018]
[1680655107831,0.1483,28377.0,28375.0,0.38361278]
[1680655108063,0.1483,28377.0,28376.0,0.038579]
[1680655108310,0.1483,28377.0,28376.0,0.00018]
[1680655108538,0.1483,28377.0,28375.0,0.00018]
[1680655108760,0.1483,28377.0,28376.0,0.08966461]
[1680655108986,0.2671,28377.0,28376.0,0.016038]
[1680655109228,0.2671,28377.0,28376.0,1.21449556]
[1680655109229,0.1188,28377.0,28376.0,1.21449556]
[1680655109459,0.1188,28377.0,28376.0,1.66339556]
[1680655109687,0.1188,28377.0,28376.0,2.01833556]
[1680655110179,0.0482625,28377.0,28376.0,2.26584685]
[1680655110410,0.00051,28383.0,28379.0,2.2727]
[1680655110637,0.11931,28384.0,28382.0,0.57903176]
[1680655110870,0.11931,28384.0,28383.0,0.81362256]
[1680655111100,0.11931,28384.0,28383.0,0.89615526]
[1680655111827,0.11931,28384.0,28383.0,2.03098797]
[1680655112061,0.1177,28384.0,28383.0,2.23749973]
[1680655112282,0.1177,28384.0,28383.0,2.07243432]
[1680655113176,0.1177,28384.0,28383.0,2.39757512]
[1680655113412,0.1177,28384.0,28383.0,2.21032274]
[1680655113633,0.1177,28384.0,28383.0,2.10869312]
[1680655114098,0.1177,28384.0,28383.0,1.94863517]
[1680655114547,0.1177,28384.0,28383.0,1.78355232]
[1680655115000,0.1177,28384.0,28383.0,2.13585232]
[1680655116211,0.1177,28384.0,28383.0,2.13567232]
[1680655116970,0.1177,28384.0,28383.0,2.47141845]
[1680655117190,0.1177,28384.0,28383.0,2.13585232]
[1680655117405,0.1177,28384.0,28383.0,1.92952056]
[1680655118746,0.1177,28384.0,28383.0,1.93216056]
[1680655119635,0.25959681,28384.0,28383.0,0.50475]
[1680655119873,0.25959681,28384.0,28383.0,0.5563383]
[1680655120115,0.27961719,28384.0,28383.0,0.038769]
[1680655120344,0.27961719,28384.0,28383.0,0.015854]
[1680655120556,0.27961719,28384.0,28383.0,0.039444]
[1680655120780,0.27961719,28384.0,28381.0,0.20670496]
[1680655120781,0.28012719,28384.0,28381.0,0.08279449]
[1680655121019,0.28012719,28384.0,28382.0,0.035891]
[1680655121242,0.1489,28382.0,28381.0,0.09846949]
[1680655121459,0.1489,28382.0,28381.0,0.56296925]
[1680655121936,0.1489,28382.0,28381.0,0.56158545]
[1680655122161,0.1489,28382.0,28381.0,0.13802549]
[1680655122383,0.1489,28382.0,28381.0,0.54862693]
[1680655122603,0.1489,28382.0,28381.0,0.12217049]
[1680655122823,0.1489,28382.0,28381.0,0.039556]
[1680655125339,0.1177,28384.0,28381.0,0.039556]
[1680655125340,0.1177,28384.0,28381.0,0.97316468]
[1680655125609,0.1177,28384.0,28382.0,0.47149641]
[1680655125840,0.1177,28384.0,28383.0,0.039892]
[1680655125841,0.3679958,28384.0,28383.0,0.039892]
[1680655126068,0.230155,28384.0,28383.0,0.039892]
[1680655126287,0.230155,28384.0,28383.0,0.055746]
[1680655128334,0.230155,28384.0,28383.0,0.47531416]
[1680655128564,0.230155,28384.0,28383.0,0.49325105]
[1680655128788,0.230155,28384.0,28383.0,0.94854586]
[1680655129020,0.230155,28384.0,28383.0,1.15501848]
[1680655129243,0.230155,28384.0,28383.0,1.15501529]
[1680655129514,0.230155,28384.0,28383.0,0.98981899]
[1680655129960,0.230155,28384.0,28383.0,1.36309395]
[1680655130850,1.1,28388.0,28383.0,1.36309395]
[1680655130851,1.1,28388.0,28385.0,0.4]
[1680655131089,1.1,28388.0,28387.0,1.48781056]
[1680655131090,1.02647897,28388.0,28387.0,1.48781056]
[1680655131322,0.54418148,28388.0,28387.0,2.73972355]
[1680655131558,0.54418148,28388.0,28387.0,2.8510693]
[1680655132021,0.54418148,28388.0,28387.0,4.31627262]
[1680655132697,0.54418148,28388.0,28387.0,3.2625433]
[1680655132933,0.54418148,28388.0,28387.0,3.15134756]
[1680655132934,0.54448148,28388.0,28387.0,3.15134756]
[1680655133153,0.54448148,28388.0,28387.0,3.39876692]
[1680655133426,0.54448148,28388.0,28387.0,3.30744756]
[1680655133649,0.54448148,28388.0,28387.0,3.42067256]
[1680655133870,0.54448148,28388.0,28387.0,3.45539944]
[1680655134316,0.54448148,28388.0,28387.0,3.33367444]
[1680655134543,0.54448148,28388.0,28387.0,3.78901381]
[1680655134767,0.54448148,28388.0,28387.0,3.5809698]
[1680655135223,0.54448148,28388.0,28387.0,3.91648316]
[1680655135453,0.54448148,28388.0,28387.0,3.5809698]
[1680655136574,0.54448148,28388.0,28387.0,3.33367444]
[1680655136827,0.05430048,28388.0,28387.0,3.67372677]
[1680655137047,0.0003,28397.0,28395.0,1.8727]
[1680655137298,0.0003,28397.0,28396.0,1.35319956]
[1680655137732,0.0003,28397.0,28396.0,0.98307956]
[1680655137947,0.0003,28397.0,28396.0,0.80702956]
[1680655138378,0.0003,28397.0,28396.0,1.13656853]
[1680655138591,0.0003,28397.0,28396.0,1.17972956]
[1680655139945,0.0003,28397.0,28396.0,1.63462762]
[1680655140165,0.0003,28397.0,28396.0,1.17972956]
[1680655140611,0.0003,28397.0,28396.0,1.55631898]
[1680655140826,0.0003,28397.0,28396.0,1.17972956]
[1680655141100,0.5263,28401.0,28396.0,1.17732956]
[1680655141325,0.5263,28401.0,28400.0,0.17604]
[1680655141546,0.0194,28401.0,28400.0,0.61906156]
[1680655141991,0.0194,28401.0,28400.0,0.056621]
[1680655142214,0.0194,28401.0,28400.0,0.050676]
[1680655142414,0.17983501,28401.0,28400.0,0.066521]
[1680655142889,0.0194,28401.0,28400.0,0.066521]
[1680655143327,0.0194,28401.0,28400.0,0.42123156]
[1680655143549,0.0194,28401.0,28400.0,0.77035678]
[1680655143981,0.0194,28401.0,28400.0,0.066521]
[1680655144483,0.0194,28401.0,28399.0,0.51094959]
[1680655144728,0.1418922,28401.0,28400.0,0.047604]
[1680655144954,0.16851,28401.0,28400.0,0.0053]
[1680655145190,0.52301056,28401.0,28400.0,0.0053]
[1680655145423,0.52322056,28401.0,28400.0,0.0053]
[1680655145662,0.16851,28401.0,28400.0,0.0053]
[1680655146115,0.31048584,28401.0,28400.0,0.0053]
[1680655146336,0.31048584,28401.0,28400.0,0.021145]
[1680655146768,0.31048584,28401.0,28400.0,0.0053]
[1680655148149,0.31048584,28401.0,28400.0,0.021145]
[1680655148600,0.01926074,28401.0,28400.0,0.197195]
[1680655148884,0.66263692,28401.0,28400.0,0.0053]
[1680655150036,0.16816074,28401.0,28400.0,0.45748804]
[1680655150262,0.01926074,28401.0,28400.0,0.72454104]
[1680655150730,0.01926074,28401.0,28400.0,0.112148]
[1680655150944,0.01926074,28401.0,28400.0,0.048768]
[1680655151175,0.01926074,28401.0,28400.0,0.048948]
[1680655153001,0.16816074,28401.0,28400.0,0.048948]
[1680655153235,0.31792003,28401.0,28400.0,0.033103]
[1680655153459,0.31792003,28401.0,28400.0,0.0053]
[1680655154354,0.5228713,28401.0,28400.0,0.0001]
[1680655154597,0.5228713,28401.0,28393.0,0.00018]
[1680655154598,0.4727,28400.0,28393.0,0.00018]
[1680655154826,0.1489,28394.0,28393.0,0.41378883]
[1680655155054,0.29079681,28394.0,28393.0,0.45493183]
[1680655155271,0.1489,28394.0,28393.0,0.041503]
[1680655155493,0.14837185,28394.0,28393.0,0.025475]
[1680655155710,0.14837185,28394.0,28393.0,0.041323]
[1680655156183,0.14837185,28394.0,28393.0,0.44277277]
[1680655156686,0.14837185,28394.0,28393.0,0.041323]
[1680655157584,0.3937,28402.0,28397.0,0.4]
[1680655157585,0.021,28402.0,28397.0,0.4]
[1680655157810,0.17373264,28402.0,28398.0,0.86433056]
[1680655158039,0.17373264,28402.0,28400.0,0.54875]
[1680655158260,0.19498996,28401.0,28400.0,0.60536556]
[1680655158496,0.16816074,28401.0,28400.0,0.042925]
[1680655158949,0.35454888,28401.0,28400.0,0.042925]
[1680655159836,0.35475888,28401.0,28400.0,0.042925]
[1680655160064,0.35475888,28401.0,28400.0,0.02708]
[1680655160309,0.35475888,28401.0,28400.0,0.042925]
[1680655160310,0.35454888,28401.0,28400.0,0.042925]
[1680655160533,0.35475888,28401.0,28400.0,0.042925]
[1680655160750,0.35454888,28401.0,28400.0,0.03936802]
[1680655161868,0.16816074,28401.0,28400.0,0.03936802]
[1680655163000,0.16816074,28401.0,28399.0,0.00012]
[1680655163001,0.35947046,28401.0,28399.0,0.00012]
[1680655163223,0.35947046,28401.0,28399.0,0.015845]
[1680655163446,0.35947046,28401.0,28397.0,0.015846]
[1680655163668,0.35947046,28401.0,28398.0,0.040429]
[1680655163669,0.148,28399.0,28398.0,0.040429]
[1680655165203,0.148,28399.0,28396.0,0.47445769]
[1680655165204,0.64460737,28399.0,28396.0,0.00018]
[1680655165442,0.1489,28395.0,28392.0,0.35827403]
[1680655165636,0.1489,28393.0,28392.0,0.37430303]
[1680655165881,0.29079681,28393.0,28392.0,0.40063503]
[1680655166118,0.1489,28393.0,28392.0,0.40063503]
[1680655166824,0.1489,28393.0,28392.0,0.042361]
[1680655167059,1.20369437,28393.0,28389.0,0.00018]
[1680655167290,1.20369437,28393.0,28388.0,0.63610332]
[1680655167291,0.1486,28390.0,28388.0,0.63610332]
[1680655167520,0.38699656,28389.0,28388.0,0.63610332]
[1680655167752,0.38699656,28389.0,28388.0,0.96848156]
[1680655167753,0.032346,28389.0,28388.0,0.96848156]
[1680655168047,0.14875,28390.0,28388.0,1.01632232]
[1680655168048,0.14881,28390.0,28388.0,1.01632232]
[1680655168264,0.50331056,28390.0,28388.0,1.01632232]
[1680655168484,0.50352056,28390.0,28388.0,1.01632232]